Cogmind - Beta 15 @@@ ROGUE MODE // 2025.08.15 @ 14:15:42 Player: opdo Result: Destroyed by Autobeam Turret with Autobeam Performance ------------- Evolutions (0) 0 Regions Visited (2) 400 Robots Destroyed (20) 100 Value Destroyed (431) 431 Prototype IDs (1) 20 Alien Tech Used (0) 0 Bonus (0) 0 TOTAL SCORE: 951 Bonus ------- None Cogmind --------- Core Integrity 0/250 Matter 300/300 Energy 93/100 System Corruption 0% Temperature Cool (68) Movement Core (450) Ox8 Location -10/Subcaves Parts ------- > --- POWER (1) -------- (None) > --- PROPULSION (2) --- (None) > --- UTILITY (2) ------ Large Storage Unit Targeting Computer > --- WEAPON (2) ------- Improved Medium Laser Improved Medium Laser > --- INVENTORY (15) --- Light Treads Light Treads Aluminum Leg Aluminum Leg Wheel Medium Matter Pod (93) Medium Armor Plating Medium Armor Plating Hacking Suite Light Cannon Light Cannon Mining Laser Peak State ------------ > --- POWER ------------ Light Ion Engine > --- PROPULSION ------- Aluminum Leg Aluminum Leg > --- UTILITY ---------- Small Storage Unit Targeting Computer > --- WEAPON ----------- Improved Medium Laser Improved Medium Laser > --- INVENTORY -------- Light Treads Light Treads Wheel Medium Armor Plating Medium Armor Plating Light Cannon Light Cannon Mining Laser [Rating: 12] Favorites ----------- Power Light Ion Engine Engine Light Ion Engine Propulsion Aluminum Leg Leg Aluminum Leg Utility Targeting Computer Storage Large Storage Unit Processor Targeting Computer Weapon Improved Medium Laser Energy Gun Improved Medium Laser Build | -11 -10 -10 ------- Run | Yrd Mat Sub Slots Evolved . | . . . Power . | . . . Propulsion . | . . . Utility . | . . . Weapon . | . . . Parts Attached 13 | 6 7 . Power 2 | 1 1 . Engine 2 | 1 1 . Core . | . . . Reactor . | . . . Propulsion 4 | 2 2 . Treads . | . . . Leg 4 | 2 2 . Wheel . | . . . Hover . | . . . Flight . | . . . Utility 3 | 1 2 . Device . | . . . Storage 2 | 1 1 . Processor 1 | . 1 . Hackware . | . . . Protection . | . . . Artifact . | . . . Weapon 4 | 2 2 . Energy Gun 4 | 2 2 . Energy Cannon . | . . . Ballistic Gun . | . . . Ballistic Cannon . | . . . Launcher . | . . . Special Weapon . | . . . Impact Weapon . | . . . Slashing Weapon . | . . . Piercing Weapon . | . . . Special Melee Weapon . | . . . Unidentified Prototypes 1 | . 1 . Parts Lost 4 | . . 4 Power 2 | . . 2 Propulsion 2 | . . 2 Utility . | . . . Weapon . | . . . Highest Loss Streak 3 | . . 3 To Critical Strikes . | . . . Average Backups 9 | 2 9 12 Power . | . . . Propulsion 3 | 2 3 5 Utility 2 | . 2 4 Weapon 2 | . 3 3 Tool/Special . | . . . Unused Backups 12 | . 2 10 Power . | . . . Propulsion 4 | . 1 3 Utility 4 | . . 4 Weapon 4 | . 1 3 Tool/Special . | . . . Average Slot Usage (%) 98 | . 98 98 Engine 13 | . 14 12 Leg 28 | . 28 28 Storage 14 | . 14 14 Processor 13 | . 13 14 Energy Gun 27 | . 27 28 Peak Build Rating 12 | 6 12 12 Average Rating 10 | 4 10 11 On Entrance 6 | . 6 12 Naked Turns . | . . . Heaviest Build 29 | 11 29 29 Greatest Support 20 | 20 20 20 Greatest Overweight (x) 2 | 2 1 1 Average Overweight (x) . | . . 1 Largest Inventory Capacity 15 | 8 15 15 Average Capacity 12 | 7 11 15 Most Carried 13 | 6 13 13 Average Carried 9 | 3 9 12 Final Capacity 15 | 8 15 15 Final Carried 13 | 6 13 12 Class Distribution -------------------- 100% | Mutant Dominant Class ---------------- Mutant | -10/Materials Mutant | -10/Subcaves Resources | -11 -10 -10 ----------- Run | Yrd Mat Sub Matter Collected 450 | 125 307 18 Remotely . | . . . Salvage Created 566 | 18 487 61 Parts 26 | 2 18 6 Haulers Intercepted 1 | . 1 . Recyclers Shooed 1 | 1 . . Parts Field Recycled . | . . . Retrieved Matter . | . . . Parts Self-Destructed 11 | . . 11 Prevented . | . . . Kills | -11 -10 -10 ------- Run | Yrd Mat Sub Combat Hostiles Destroyed 14 | . 10 4 Guns 14 | . 10 4 Classes Destroyed 6 | 1 5 . Tunneler 1 | 1 . . Hauler 1 | . 1 . Operator 2 | . 2 . Watcher 2 | . 2 . Swarmer 6 | . 2 4 Grunt 8 | . 8 . Best Kill Streak 5 | 1 5 3 Combat Bots Only 4 | . 4 3 Max Kills in Single Turn 1 | 1 1 1 Gunslinging . | . . . Exploded . | . . . Melee . | . . . Uniques/NPCs Destroyed . | . . . Combat | -11 -10 -10 -------- Run | Yrd Mat Sub Hostile Shots Fired 129 | . 32 97 Missed 42 | . 4 38 Hits 87 | . 28 59 Projectile 87 | . 28 59 Critical Strikes 1 | . 1 . Damage Taken 764 | . 317 447 Core 252 | . 140 112 Absorbed by Shields . | . . . Core Remaining (%) 100 | 100 . . Volleys Fired 57 | 4 33 20 Largest 2 | 2 2 2 Hottest 112 | 90 112 112 Shots Fired 114 | 8 66 40 Gun 114 | 8 66 40 Cannon . | . . . Launcher . | . . . Special . | . . . Kinetic . | . . . Thermal 114 | 8 66 40 Explosive . | . . . Electromagnetic . | . . . Robot Hit Streak 10 | 3 10 9 Robot Miss Streak 6 | 3 2 6 Penetration Max . | . . . Secondary Targets 2 | . . 2 Max Gunslinging Chain 1 | . . 1 Shots Hit Robots 67 | 4 46 17 Core Hits 29 | 2 21 6 Critical Kills . | . . . Critical Parts Destroyed . | . . . Critical Strikes 6 | . 2 4 Burn 6 | . 2 4 Melee Attacks . | . . . Impact . | . . . Slashing . | . . . Piercing . | . . . Sneak Attacks . | . . . Combat Hostiles . | . . . Follow-up Attacks . | . . . Damage Inflicted 1012 | 46 665 301 Guns 1005 | 46 658 301 Cannons . | . . . Explosions . | . . . Melee . | . . . Ramming 7 | . 7 . Kinetic . | . . . Thermal 1005 | 46 658 301 Explosive . | . . . Electromagnetic . | . . . Impact . | . . . Slashing . | . . . Piercing . | . . . Highest Corruption . | . . . Average Corruption . | . . . Corruption Purged . | . . . Corruption Blocked . | . . . Overload Shots . | . . . Overflow Damage . | . . . Projectiles . | . . . Explosions . | . . . Melee . | . . . Knockbacks . | . . . Impact . | . . . Kinetic . | . . . Secondary . | . . . Self-Inflicted Damage . | . . . Shots . | . . . Rammed . | . . . Targets Rammed 3 | . 3 . Kicked 3 | . 3 . Crushed . | . . . Highest Temperature 453 | 120 453 68 Average Temperature 120 | 62 131 50 Received Heat Transfer 342 | . 174 168 Effects 2 | . 2 . Shutdowns 1 | . 1 . Matter Decay 1 | . 1 . Siege Activations . | . . . Martial Activations . | . . . Shielding Activations . | . . . Robots Disrupted . | . . . Combat Hostiles . | . . . Robots Corrupted . | . . . Combat Hostiles . | . . . Parts Fried . | . . . Impact Corruptions . | . . . Robots Melted . | . . . Combat Hostiles . | . . . Parts Melted 6 | . 5 1 Heat Transferred 2792 | 112 1718 962 Parts Sabotaged . | . . . Parts Stolen . | . . . Parts Stripped . | . . . Power Chain Reactions . | . . . Alert | -11 -10 -10 ------- Run | Yrd Mat Sub Maximum Alert Level . | . . . Low Security (%) 100 | 100 100 . Level 1 . | . . . Level 2 . | . . . Level 3 . | . . . Level 4 . | . . . Level 5 . | . . . High Security . | . . . Max Security . | . . . Peak Influence 136 | 5 136 . Initial . | . . . Average 54 | . 62 . Influence Increases 501 | 5 311 185 Destroy 0b10 Robot/C 280 | . 200 80 Destroy 0b10 Robot/NC 30 | 5 25 . Destroy Leader 46 | . 46 . Successful Hack 9 | . 9 . Destroy Structure 1 | . 1 . Lose Combat Pursuer 135 | . 30 105 Influence Decreases 394 | 5 229 160 Entered New Map 40 | . . 40 Time Decay 314 | 5 229 80 Lost Part 40 | . . 40 Squads Dispatched 3 | . 3 . Investigation 2 | . 2 . Extermination . | . . . Reinforcement 1 | . 1 . Assault . | . . . Garrison . | . . . Intercept . | . . . Searches Triggered . | . . . Construction Impeded . | . . . Haulers Reinforced . | . . . Active Scanning Responses . | . . . Cargo Convoy Interrupts . | . . . Stealth | -11 -10 -10 --------- Run | Yrd Mat Sub Distress Signals 3 | . 3 . Communications Jammed . | . . . Distress Signals . | . . . Times Spotted 26 | . 19 7 Peak Tracking Total 6 | . 6 4 Tactical Retreats 4 | . 1 3 Traps | -11 -10 -10 ------- Run | Yrd Mat Sub Traps Triggered 2 | . 2 . Indirectly . | . . . Trap Hack Attempts . | . . . Triggered . | . . . Disarmed . | . . . Reprogrammed . | . . . Reused . | . . . Traps Extracted . | . . . Installed . | . . . Triggered . | . . . Machines | -11 -10 -10 ---------- Run | Yrd Mat Sub Machines Disabled 2 | . . 2 Max in Single Turn 2 | . . 2 Machines Repaired . | . . . Machines Dismantled . | . . . Machines Sabotaged . | . . . Overloaded Fab Kills . | . . . Hacking | -11 -10 -10 --------- Run | Yrd Mat Sub Machines Accessed 4 | . 4 . Terminals 3 | . 3 . Fabricators . | . . . Repair Stations . | . . . Recycling Units 1 | . 1 . Scanalyzers . | . . . Garrison Access . | . . . Total Hacks 10 | . 10 . Successful 4 | . 4 . Failed 6 | . 6 . Catastrophic . | . . . Database Lockouts . | . . . Manual 8 | . 8 . Terminals 8 | . 8 . Fabricators . | . . . Repair Stations . | . . . Recycling Units 2 | . 2 . Scanalyzers . | . . . Garrison Access . | . . . Terminal Hacks . | . . . Fabricator Hacks . | . . . Repair Station Hacks . | . . . Recycling Unit Hacks . | . . . Scanalyzer . | . . . Garrison Access Hacks . | . . . Unauthorized Hacks 4 | . 4 . Terminals 4 | . 4 . Botnet 1 | . 1 . Skim 3 | . 3 . Fabricators . | . . . Repair Stations . | . . . Recycling Units . | . . . Scanalyzers . | . . . Garrison Access . | . . . Data Cores Recovered 1 | . 1 . Used . | . . . Hacking Detections 4 | . 4 . Full Trace Events . | . . . Feedback Events . | . . . Feedback Blocked . | . . . Robot Schematics Acquired . | . . . Robots Built . | . . . Authchips . | . . . Time . | . . . Total Robot Build Rating . | . . . Part Schematics Acquired . | . . . Parts Built . | . . . Authchips . | . . . Time . | . . . Total Part Build Rating . | . . . Parts Repaired . | . . . Time . | . . . Parts Recycled . | . . . Recycled Matter . | . . . Retrieved Matter . | . . . Retrieved Components . | . . . Parts Scanalyzed . | . . . Part Schematics Acquired . | . . . Parts Damaged . | . . . Bothacking | -11 -10 -10 ------------ Run | Yrd Mat Sub Used RIF Installer . | . . . Robots Hacked . | . . . Non-combat . | . . . Combat . | . . . Robot Hacks Applied . | . . . Relay Couplers Released . | . . . Fabnet Peak Effective % . | . . . Robots Rewired . | . . . Allies Hacked . | . . . Hacks Repelled . | . . . Allies | -11 -10 -10 -------- Run | Yrd Mat Sub Total Allies . | . . . Largest Group . | . . . Highest-Rated Group . | . . . Highest-Rated Ally . | . . . Total Orders . | . . . Ally Attacks . | . . . Total Damage . | . . . Kills . | . . . Allies Corrupted . | . . . Allies Melted . | . . . Intel | -11 -10 -10 ------- Run | Yrd Mat Sub Active Infowar (turns) . | . . . Robot Analysis Total . | . . . Derelict Logs Recovered 1 | . . 1 Drone Launches . | . . . Drone Recoveries . | . . . Exploration | -11 -10 -10 ------------- Run | Yrd Mat Sub Turns Passed 828 | 92 573 163 Spaces Moved 390 | 56 280 54 Core 6 | 6 . . Treads . | . . . Legs 384 | 50 280 54 Wheels . | . . . Hover . | . . . Flight . | . . . Fastest Speed 50 | 50 120 190 Average Speed 154 | 116 154 190 Slowest Speed 190 | 150 190 190 Overloaded Moves . | . . . Propulsion Burnouts . | . . . Robots Hopped . | . . . Potential Cave-ins . | . . . Cave-ins Triggered . | . . . Exploration Rate (%) 21 | 5 52 7 Regions Visited 2 Branch Regions 1 Pre-discovered Areas 1 | . . 1 Known Exits Taken . | . . . Unknown Exits Taken 2 | 1 1 . Scrap Searched . | . . . Spaces Dug . | . . . Terrain Destroyed . | . . . Melee . | . . . Projectile . | . . . AOE . | . . . Terrain Rammed . | . . . Walls Destroyed . | . . . Machines Disabled . | . . . Actions | -11 -10 -10 --------- Run | Yrd Mat Sub Total 499 | 71 353 75 Wait 20 | . 20 . Move 388 | 55 279 54 Hop . | . . . Pick Up 12 | 6 6 . Fast Attach 9 | 6 3 . Attach 1 | . . 1 Detach . | . . . Swap 4 | . 4 . Drop 5 | . 5 . Fire 57 | 4 33 20 Melee . | . . . Ram . | . . . Kick 3 | . 3 . Crush . | . . . Escape Stasis . | . . . Rewire . | . . . Trap . | . . . Miscellaneous . | . . . Route ------- -11/Scrapyard -10/Materials (discovered 3 exits: [*Mat] / [*Min] / [*Sub]) -10/Subcaves (discovered 1 exit: [*Rec]) History --------- Turn | Location | Event 4 | -11/Scrapyard | Discovered new exit (range 16) 93 | -11/Scrapyard | Entered Materials 309 | -10/Materials | Discovered new exit (range 15) 314 | -10/Materials | Build established: Mutant 422 | -10/Materials | Core integrity fell below 50% 575 | -10/Materials | Discovered new exit (range 8) 580 | -10/Materials | Discovered new exit (range 8) 666 | -10/Materials | Entered Subcaves 667 | -10/Subcaves | Approached by a straggling Scientist 792 | -10/Subcaves | Core integrity fell below 20% 800 | -10/Subcaves | Learned location of Zion (-7) 813 | -10/Subcaves | Discovered new exit (range 8) 829 | -10/Subcaves | Destroyed by Autobeam Turret with Autobeam Last Messages --------------- 00784_ Lgt. Ion Engine fries itself beyond repair. 00785_ Lgt. Assault Rifle fries itself beyond repair. 00789_ Flight Unit fries itself beyond repair. 00790_ Lgt. Assault Rifle fries itself beyond repair. 00794_ S-10 Pest destroyed. 00797_ Subatomizers dissect the Wheel, destroying it. 00800_ Acquired derelict log, extracted data. World map updated: -7/Zion. 00809_ Acquired 18 matter. 00811_ Subatomizers dissect the Flight Unit. 00812_ Flight Unit fries itself beyond repair. 00813_ EXIT=FOUND 00815_ Machine disabled. BB-UXZ(c): "I think it's somewhere west of here" 00821_ Lgt. Ion Engine destroyed. 00823_ Aluminum Leg destroyed. Map ----- +----------------------------------------------------+ | ?????????????????????????????????????????????????? | | ?????????????????????????????????????????????????? | | ?????????????????????????????????????????????????? | | ?????????????????????????????????????????????????? | | ?????????????????????????????????????????????????? | | ?????????????????????????????????????????????????? | | ?????????????????????????????????????????????????? | | ?????????????????????????????????????????????????? | | ?????????????????????????????????????????????????? | | ?????????????????????????????????????????????????? | | ?????????????????????????????????????????????????? | | ?????????????????????????????????????????????????? | | ?????????????????????????????????????????????????? | | ?????????????????????????????????????????????????? | | ?????????????????????????????????????????????????? | | ?????????????????????????????????????????????????? | | ?????????????????????????????????????????????????? | | ?????????????????????????????????????????????????? | | ?????????????????????????????????????????????????? | | ??????????????????#######????????????????????????? | | ??????????????????#""" "?????#####??????????????? | | ??????????????????#" ##### #??????????????? | | ??????????????????#" #% #??????????????? | | ?????????????????## t #???????????????? | | ?????????????????#< %#???????????????? | | ??????????????????#""t @ % #???????????????? | | ??????????????????# # c% ###?#?????????????? | | ??????????????????#" ## ### #?????????????? | | ??????????????????#""" ??# #?????????????? | | ??????????????????######??## ##?????????????? | | ?????????????????????????### # ##?????????????? | | ?????????????????????????# ### #?????????????? | | ?????????????????????????# ## ##?????????????? | | ?????????????????????????# # ##?????????????? | | ?????????????????????????# # #?????????????? | | ?????????????????????##?## ##????????????? | | ?????????????????????# # ##???? ??????? | | ?????????????????????# ## ## #### ?????? | | ??????????????????????# ## ??????? | | ??????????????????????# ?????? | | ?????????????????????## ??????? | | ?????????????????##### ## ????????? | | ???????????????# ##??????????? | | ???????????????# #####???????????? | | ???????????????# ## ## #???????????????? | | ?????????????? ??### ## #???????????????? | | ?????????????## ?????## ## #???????????????? | | ??????????????#????????###### #???????????????? | | ????????????????????????????# #???????????????? | | ????????????????????????????# #???????????????? | +----------------------------------------------------+ Best States ------------- Heat Dissipation 25 Energy Generation 10 Energy Capacity 125 Matter Stores 300 Matter Capacity 300 Sight Range 16 Terrain Scan Density 10 Evasion (%) 55 Targeting Accuracy 5 Item Schematics ----------------- None Robot Schematics ------------------ None Fabricated ------------ Nothing Repaired ---------- Nothing Alien Tech Used ----------------- None Achievements -------------- None Challenges ------------ None Game ------ Seed FieldthrustThiefProjector Manual? 0 Play Time 00:06:01 Cumulative 101.4 hours Start 2025.08.15 @ 14:10:40 End 2025.08.15 @ 14:15:42 Sessions 1 Manual Loads 0 Difficulty Rogue Special Mode None Game No. 271 Rogue 269 Adventurer 2 Explorer 0 Win Type - Total 1 Types 1/0/0/0/0/0/0/0/0/0 Lore% 74 Gallery% 60 Achievement% 51 Wizard Run 0 Options --------- Layout 1 ASCII 0 Keyboard 0 Movement Numpad Keybinds 0 Fullscreen 1 Font 24/Smallcaps Map View 50x35 Zoom Use 0% Tactical HUD 1 Map Filters NONE Filters NONE Steam 1 RUN: 0d689f00-559a-40f4-a048-8664d8b7063a